Cogmind - Beta 16.1 @@@ ROGUE MODE // 2026.04.09 @ 16:48:21 Player: Maelyn Result: Destroyed by as-42496 with Assembled Blade Performance ------------- Evolutions (0) 0 Regions Visited (4) 800 Robots Destroyed (25) 125 Value Destroyed (445) 445 Prototype IDs (23) 460 Alien Tech Used (0) 0 Bonus (300) 300 TOTAL SCORE: 2130 Bonus ------- Aligned with FarCom 300 Cogmind --------- Core Integrity 0/250 Matter 300/300 Energy 82/100 System Corruption 4% Temperature Cool (0) Movement Core (200) Ox3 Location -9/Mines Parts ------- > --- POWER (1) -------- (None) > --- PROPULSION (2) --- (None) > --- UTILITY (2) ------ Medium Storage Unit Supersonic Drone Bay (0/1) > --- WEAPON (2) ------- (None) > --- INVENTORY (10) --- ECM Suite Utility Shielding Utility Shielding Chronowheel Beam Cannon Peak State ------------ > --- POWER ------------ (None) > --- PROPULSION ------- (None) > --- UTILITY ---------- Medium Storage Unit Supersonic Drone Bay > --- WEAPON ----------- Guided Plasma Cannon > --- INVENTORY -------- ECM Suite Utility Shielding Utility Shielding Chronowheel Beam Cannon [Rating: 18] Favorites ----------- Power Light Ion Engine Engine Light Ion Engine Power Core Light Nuclear Core Propulsion Light Treads Treads Light Treads Leg Aluminum Leg Utility Medium Storage Unit Device Seismic Detector Storage Medium Storage Unit Weapon Medium Laser Energy Gun Medium Laser Energy Cannon Beam Cannon Ballistic Gun Light Assault Rifle Launcher Grenade Launcher Build | -11 -10 -10 -10 -9 ------- Run | Yrd Mat Min Exi Min Slots Evolved . | . . . . . Power . | . . . . . Propulsion . | . . . . . Utility . | . . . . . Weapon . | . . . . . Parts Attached 21 | 7 6 3 3 2 Power 3 | 1 1 1 . . Engine 2 | 1 1 . . . Core 1 | . . 1 . . Reactor . | . . . . . Propulsion 5 | 2 1 . 2 . Treads 3 | 2 1 . . . Leg 2 | . . . 2 . Wheel . | . . . . . Hover . | . . . . . Flight . | . . . . . Utility 5 | 2 1 . 1 1 Device 3 | 1 . . 1 1 Storage 2 | 1 1 . . . Processor . | . . . . . Hackware . | . . . . . Protection . | . . . . . Artifact . | . . . . . Weapon 8 | 2 3 2 . 1 Energy Gun 4 | 2 2 . . . Energy Cannon 2 | . 1 . . 1 Ballistic Gun 1 | . . 1 . . Ballistic Cannon . | . . . . . Launcher 1 | . . 1 . . Special Weapon . | . . . . . Impact Weapon . | . . . . . Slashing Weapon . | . . . . . Piercing Weapon . | . . . . . Special Melee Weapon . | . . . . . Unidentified Prototypes . | . . . . . Parts Lost 11 | . 2 2 . 7 Power 3 | . 1 1 . 1 Propulsion 3 | . 1 . . 2 Utility 2 | . . 1 . 1 Weapon 3 | . . . . 3 Highest Loss Streak 7 | . 1 1 . 7 To Critical Strikes . | . . . . . Average Backups 8 | 3 8 9 9 6 Power . | 1 . . . . Propulsion 1 | 1 2 2 1 . Utility 3 | . 3 5 4 3 Weapon 1 | . 1 2 2 1 Tool/Special . | . . . . . Unused Backups 6 | . 2 . . 4 Power . | . . . . . Propulsion . | . . . . . Utility 5 | . 2 . . 3 Weapon . | . . . . . Tool/Special 1 | . . . . 1 Average Slot Usage (%) 94 | . 99 86 89 71 Engine 8 | . 13 1 . . Core 4 | . . 9 14 6 Treads 25 | . 27 28 20 . Leg 2 | . . . 7 22 Device 10 | . 14 4 4 6 Storage 14 | . 14 14 14 14 Energy Gun 19 | . 23 14 14 6 Energy Cannon 3 | . 4 . . 8 Ballistic Gun 5 | . . 10 14 8 Peak Build Rating 18 | 7 8 9 14 18 Average Rating 8 | 3 7 8 10 13 On Entrance 7 | . 7 8 9 14 Avg Prop Armor Cover (%) . | . . . . . Naked Turns . | . . . . . Heaviest Build 21 | 13 19 19 19 21 Greatest Support 40 | 40 40 40 40 20 Greatest Overweight (x) 6 | 1 . . . 6 Average Overweight (x) . | . . . . . Largest Inventory Capacity 10 | 8 10 10 10 10 Average Capacity 9 | 7 9 10 10 10 Most Carried 10 | 8 10 10 10 7 Average Carried 8 | 3 8 9 9 6 Final Capacity 10 | 8 10 10 10 10 Final Carried 10 | 3 10 9 7 5 Class Distribution -------------------- 100% | Mutant Dominant Class ---------------- Mutant | -10/Materials Mutant | -10/Mines Mutant | -10/Exiles Mutant | -9/Mines Resources | -11 -10 -10 -10 -9 ----------- Run | Yrd Mat Min Exi Min Matter Collected 445 | 123 207 66 39 10 Remotely . | . . . . . Salvage Created 694 | 149 455 77 . 13 Parts 47 | 14 26 7 . . Haulers Intercepted 1 | . 1 . . . Recyclers Shooed 1 | . . 1 . . Parts Field Recycled . | . . . . . Retrieved Matter . | . . . . . Parts Self-Destructed . | . . . . . Prevented . | . . . . . Parts Restored . | . . . . . Kills | -11 -10 -10 -10 -9 ------- Run | Yrd Mat Min Exi Min Combat Hostiles Destroyed 15 | . 9 5 . 1 Guns 13 | . 9 4 . . Cannons 1 | . . . . 1 AOE 1 | . . 1 . . Classes Destroyed 9 | 2 6 . . 1 Builder 1 | . 1 . . . Tunneler 4 | 3 . 1 . . Hauler 1 | . 1 . . . Recycler 1 | 1 . . . . Operator 1 | . 1 . . . Watcher 3 | . 3 . . . Swarmer 8 | . 3 5 . . Grunt 6 | . 6 . . . Assembled 1 | . . . . 1 Best Kill Streak 5 | 4 5 4 . 1 Combat Bots Only 4 | . 4 3 . 1 Max Kills in Single Turn 2 | 1 2 1 . 1 Gunslinging 1 | . 1 . . . Exploded 1 | . . 1 . . Melee . | . . . . . Uniques/NPCs Destroyed . | . . . . . Combat | -11 -10 -10 -10 -9 -------- Run | Yrd Mat Min Exi Min Hostile Shots Fired 140 | . 43 35 . 62 Missed 45 | . 13 9 . 23 Hits 95 | . 30 26 . 39 Melee 14 | . . . . 14 Projectile 81 | . 30 26 . 25 Part Disruptions 1 | . . . . 1 Damage Taken 1368 | . 456 212 . 700 Core 272 | . 99 28 . 145 Absorbed by Shields . | . . . . . Core Remaining (%) 100 | 100 . . . . Volleys Fired 84 | 6 50 21 . 7 Largest 2 | 2 2 2 . 2 Hottest 120 | 90 110 110 . 120 Shots Fired 155 | 12 99 34 . 10 Gun 147 | 12 98 31 . 6 Cannon 7 | . 1 2 . 4 Launcher 1 | . . 1 . . Special . | . . . . . Kinetic 14 | . . 11 . 3 Thermal 126 | 6 91 22 . 7 Explosive 1 | . . 1 . . Electromagnetic 14 | 6 8 . . . Robot Hit Streak 10 | 3 10 7 . 8 Robot Miss Streak 6 | 1 6 3 . 2 Penetration Max . | . . . . . Secondary Targets 2 | . 1 1 . . Max Gunslinging Chain 1 | . 1 1 . . Shots Hit Robots 91 | 8 56 19 . 8 Core Hits 42 | 5 25 9 . 3 Critical Kills . | . . . . . Critical Parts Destroyed . | . . . . . Critical Strikes 4 | 1 2 1 . . Burn 4 | 1 2 1 . . Melee Attacks . | . . . . . Impact . | . . . . . Slashing . | . . . . . Piercing . | . . . . . Sneak Attacks . | . . . . . Combat Hostiles . | . . . . . Follow-up Attacks . | . . . . . Damage Inflicted 1390 | 99 803 329 . 159 Guns 1067 | 99 710 206 . 52 Cannons 125 | . 18 . . 107 Explosions 197 | . 75 122 . . Melee . | . . . . . Ramming 1 | . . 1 . . Kinetic 84 | . . 57 . 27 Thermal 1068 | 62 725 149 . 132 Explosive 122 | . . 122 . . Electromagnetic 115 | 37 78 . . . Impact . | . . . . . Slashing . | . . . . . Piercing . | . . . . . Highest Corruption 4 | . 1 1 1 4 Average Corruption 1 | . 1 1 1 3 Corruption Purged . | . . . . . Corruption Blocked . | . . . . . Effects 10 | . 5 . 3 2 Message Errors 2 | . 1 . . 1 Matter Fused 4 | . 3 . 1 . Energy Discharges 1 | . . . 1 . Data Loss (major) 3 | . 1 . 1 1 Overload Shots . | . . . . . Overflow Damage 5 | . . 5 . . Projectiles . | . . . . . Explosions 5 | . . 5 . . Melee . | . . . . . Knockbacks . | . . . . . Impact . | . . . . . Kinetic . | . . . . . Secondary . | . . . . . Self-Inflicted Damage 123 | . 108 15 . . Shots 5 | . 4 1 . . Rammed 1 | . . 1 . . Targets Rammed 1 | . . 1 . . Kicked . | . . . . . Crushed . | . . . . . Highest Temperature 292 | 120 239 68 . 292 Average Temperature 77 | 48 90 22 . 98 Received Heat Transfer 331 | . 171 . . 160 Siege Activations . | . . . . . Martial Activations . | . . . . . Shielding Activations . | . . . . . Robots Disrupted . | . . . . . Combat Hostiles . | . . . . . Robots Corrupted . | . . . . . Combat Hostiles . | . . . . . Parts Fried 1 | . 1 . . . Impact Corruptions . | . . . . . Robots Melted . | . . . . . Combat Hostiles . | . . . . . Parts Melted 8 | 1 5 2 . . Heat Transferred 3011 | 259 1920 518 . 314 Parts Sabotaged . | . . . . . Parts Stolen . | . . . . . Parts Stripped . | . . . . . Power Chain Reactions 2 | . 2 . . . Alert | -11 -10 -10 -10 -9 ------- Run | Yrd Mat Min Exi Min Maximum Alert Level . | . . . . . Low Security (%) 100 | 100 100 100 . 100 Level 1 . | . . . . . Level 2 . | . . . . . Level 3 . | . . . . . Level 4 . | . . . . . Level 5 . | . . . . . High Security . | . . . . . Max Security . | . . . . . Peak Influence 116 | 10 116 66 . 1 Initial 6 | . 6 . . . Average 20 | 2 23 20 . . Influence Increases 473 | 20 326 126 . 1 Destroy 0b10 Robot/C 280 | . 180 100 . . Destroy 0b10 Robot/NC 55 | 20 30 5 . . Destroy Leader 68 | . 58 10 . . Successful Hack 6 | . 6 . . . Disable Machine 45 | . 45 . . . Destroy Structure 19 | . 7 11 . 1 Influence Decreases 473 | 10 336 126 . 1 Entered New Map 4 | . 4 . . . Time Decay 429 | 10 312 106 . 1 Lost Part 40 | . 20 20 . . Squads Dispatched 3 | . 3 . . . Investigation 2 | . 2 . . . Extermination . | . . . . . Reinforcement 1 | . 1 . . . Assault . | . . . . . Garrison . | . . . . . Intercept . | . . . . . Searches Triggered . | . . . . . Construction Impeded . | . . . . . Haulers Reinforced . | . . . . . Active Scanning Responses . | . . . . . Cargo Convoy Interrupts . | . . . . . Stealth | -11 -10 -10 -10 -9 --------- Run | Yrd Mat Min Exi Min Distress Signals 1 | . 1 . . . Communications Jammed . | . . . . . Distress Signals . | . . . . . Times Spotted 33 | . 18 6 . 9 Peak Tracking Total 12 | . 3 3 . 12 Tactical Retreats 1 | . . . . 1 Traps | -11 -10 -10 -10 -9 ------- Run | Yrd Mat Min Exi Min Traps Triggered 1 | . 1 . . . Indirectly . | . . . . . Trap Hack Attempts . | . . . . . Triggered . | . . . . . Disarmed . | . . . . . Reprogrammed . | . . . . . Reused . | . . . . . Traps Extracted . | . . . . . Installed . | . . . . . Triggered . | . . . . . Machines | -11 -10 -10 -10 -9 ---------- Run | Yrd Mat Min Exi Min Machines Disabled 3 | . 3 . . . Max in Single Turn 1 | . 1 . . . Machines Repaired . | . . . . . Machines Dismantled . | . . . . . Machines Sabotaged . | . . . . . Overloaded Fab Kills . | . . . . . Hacking | -11 -10 -10 -10 -9 --------- Run | Yrd Mat Min Exi Min Machines Accessed 3 | . 2 . 1 . Terminals 2 | . 2 . . . Fabricators . | . . . . . Repair Stations . | . . . . . Recycling Units . | . . . . . Scanalyzers . | . . . . . Garrison Access . | . . . . . Total Hacks 6 | . 5 . 1 . Successful 2 | . 1 . 1 . Failed 4 | . 4 . . . Catastrophic 1 | . 1 . . . Database Lockouts . | . . . . . Manual 10 | . 5 . 5 . Terminals 5 | . 5 . . . Fabricators . | . . . . . Repair Stations . | . . . . . Recycling Units . | . . . . . Scanalyzers . | . . . . . Garrison Access . | . . . . . Terminal Hacks 2 | . 1 . 1 . Robot Analysis 1 | . 1 . . . Proto ID Catalog 1 | . . . 1 . Fabricator Hacks . | . . . . . Repair Station Hacks . | . . . . . Recycling Unit Hacks . | . . . . . Scanalyzer . | . . . . . Garrison Access Hacks . | . . . . . Unauthorized Hacks . | . . . . . Terminals . | . . . . . Fabricators . | . . . . . Repair Stations . | . . . . . Recycling Units . | . . . . . Scanalyzers . | . . . . . Garrison Access . | . . . . . Data Cores Recovered 1 | . 1 . . . Used . | . . . . . Hacking Detections 1 | . 1 . . . Full Trace Events 1 | . 1 . . . Feedback Events . | . . . . . Feedback Blocked . | . . . . . Robot Schematics Acquired . | . . . . . Robots Built . | . . . . . Authchips . | . . . . . Time . | . . . . . Total Robot Build Rating . | . . . . . Part Schematics Acquired . | . . . . . Parts Built . | . . . . . Authchips . | . . . . . Time . | . . . . . Total Part Build Rating . | . . . . . Part Studies Acquired . | . . . . . Parts Repaired . | . . . . . Time . | . . . . . Parts Recycled . | . . . . . Recycled Matter . | . . . . . Retrieved Matter . | . . . . . Retrieved Components . | . . . . . Parts Scanalyzed . | . . . . . Part Schematics Acquired . | . . . . . Parts Damaged . | . . . . . Bothacking | -11 -10 -10 -10 -9 ------------ Run | Yrd Mat Min Exi Min Used RIF Installer . | . . . . . Robots Hacked . | . . . . . Non-combat . | . . . . . Combat . | . . . . . Robot Hacks Applied . | . . . . . Relay Couplers Released . | . . . . . Fabnet Peak Effective % . | . . . . . Robots Rewired . | . . . . . Allies Hacked . | . . . . . Hacks Repelled . | . . . . . Allies | -11 -10 -10 -10 -9 -------- Run | Yrd Mat Min Exi Min Total Allies . | . . . . . Largest Group . | . . . . . Highest-Rated Group . | . . . . . Highest-Rated Ally . | . . . . . Total Orders . | . . . . . Ally Attacks . | . . . . . Total Damage . | . . . . . Kills . | . . . . . Allies Corrupted . | . . . . . Allies Melted . | . . . . . Intel | -11 -10 -10 -10 -9 ------- Run | Yrd Mat Min Exi Min Active Infowar (turns) 1326 | 4 1235 87 . . Seismic 1326 | 4 1235 87 . . Robot Analysis Total 1 | . 1 . . . Derelict Logs Recovered . | . . . . . Drone Launches 1 | . . . . 1 Drone Recoveries . | . . . . . Exploration | -11 -10 -10 -10 -9 ------------- Run | Yrd Mat Min Exi Min Turns Passed 2133 | 79 1235 305 452 62 Spaces Moved 1193 | 42 665 155 302 29 Core 31 | 27 . . . 4 Treads 1038 | 15 665 155 203 . Legs 124 | . . . 99 25 Wheels . | . . . . . Hover . | . . . . . Flight . | . . . . . Fastest Speed 50 | 50 160 160 120 120 Average Speed 154 | 108 160 160 146 153 Slowest Speed 350 | 160 160 160 160 350 Overloaded Moves . | . . . . . Propulsion Burnouts . | . . . . . Robots Hopped . | . . . . . Potential Cave-ins . | . . . . . Cave-ins Triggered . | . . . . . Exploration Rate (%) 43 | 4 90 47 62 12 Regions Visited 4 Branch Regions 3 Pre-discovered Areas . | . . . . . Known Exits Taken . | . . . . . Unknown Exits Taken 4 | 1 1 1 1 . Scrap Searched . | . . . . . Spaces Dug . | . . . . . Terrain Destroyed 16 | . 4 11 . 1 Melee . | . . . . . Projectile 1 | . . . . 1 AOE 15 | . 4 11 . . Terrain Rammed . | . . . . . Walls Destroyed . | . . . . . Machines Disabled . | . . . . . Actions | -11 -10 -10 -10 -9 --------- Run | Yrd Mat Min Exi Min Total 1330 | 64 738 179 311 38 Wait . | . . . . . Move 1189 | 41 664 154 301 29 Hop . | . . . . . Pick Up 26 | 10 13 . 3 . Fast Attach 1 | . 1 . . . Attach 13 | 7 2 1 1 2 Detach . | . . . . . Swap 7 | . 3 2 2 . Drop 9 | . 5 . 4 . Fire 84 | 6 50 21 . 7 Melee . | . . . . . Ram . | . . . . . Kick . | . . . . . Crush 1 | . . 1 . . Escape Stasis . | . . . . . Rewire . | . . . . . Trap . | . . . . . Miscellaneous . | . . . . . Route ------- -11/Scrapyard -10/Materials (discovered 6 exits: [*Mat x3] / [*Min x2] / [*Sub]) -10/Mines -10/Exiles -9/Mines History --------- Turn | Location | Event 12 | -11/Scrapyard | Discovered new exit (range 16) 80 | -11/Scrapyard | Entered Materials 302 | -10/Materials | Build established: Mutant 495 | -10/Materials | Discovered new exit (range 15) 819 | -10/Materials | Discovered new exit (range 16) 864 | -10/Materials | Discovered new exit (range 10) 970 | -10/Materials | Discovered new exit (range 9) 1095 | -10/Materials | Discovered new exit (range 15) 1267 | -10/Materials | Discovered new exit (range 6) 1315 | -10/Materials | Entered Mines 1387 | -10/Mines | Core integrity fell below 50% 1571 | -10/Mines | Deemed a non-threat by the Exiles lab entrance 1572 | -10/Mines | Discovered new exit (range 5) 1620 | -10/Mines | Entered Exiles 1664 | -10/Exiles | Met 8R-AWN 1686 | -10/Exiles | Met EX-HEX 1750 | -10/Exiles | Met EX-BIN 1769 | -10/Exiles | Aligned with FarCom system 1771 | -10/Exiles | Given EX-Vault access code 1886 | -10/Exiles | Opened EX-Vault 1915 | -10/Exiles | Found Chronowheel 1923 | -10/Exiles | Found Gui. Plasma Cannon 1931 | -10/Exiles | Found Supersonic Drone Bay 1957 | -10/Exiles | Exiles lab attacked by MAIN.C 2059 | -10/Exiles | Discovered new exit (range 14) 2072 | -10/Exiles | Stole three prototypes: Supersonic Drone Bay, Chronowheel, Gui. Plasma Cannon 2072 | -10/Exiles | Entered Mines 2073 | -9/Mines | Assembled infested the area 2119 | -9/Mines | Core integrity fell below 20% 2134 | -9/Mines | Destroyed by as-42496 with Assembled Blade Last Messages --------------- 02088_ as-62640 destroyed. 02092_ Lgt. Nuclear Core destroyed. 02095_ Med. Laser destroyed. 02101_ Lgt. Assault Rifle destroyed. 02101_ as-40040 destroyed. 02104_ WA:YZZIXW5EUCU,>FRDSVEVYVA&AK BIGC 02111_ AM-PHS: "Oh no, it's like what happened to the Exiles when they were wandering homeless, only there's no Warlord to save us!" 02118_ Aluminum Leg destroyed. 02118_ K-01 Serf collects debris. 02122_ Aluminum Leg destroyed. 02123_ K-01 Serf collects debris. 02124_ Trailblazer released from Supersonic Drone Bay. 02124_ K-01 Serf destroyed. 02125_ as-42496 sneak attacks. 02125_ Trailblazer destroyed. 02126_ Extracted 10 matter. 02128_ K-01 Serf collects debris. 02131_ Gui. Plasma Cannon destroyed. Map ----- +----------------------------------------------------+ | ??????????????????????????????????? | | ??????????????????????????????????? | | ??????????????????????????????????? | | ??????????????????????????????????? | | ??????????????????????????????????? | | ??????????????????????????????????? | | ??????????????????????????????????? | | ??????????????????????????????????? | | ??????????????????????????????????? | | ??????????????????????????????????? | | ??????????????????????????????????? | | ??????????????????????????????????? | | ???????????????###????????????????? | | ???????????????# ???????????????? | | ???????????????# #???????????????? | | ???????????????# #???????????????? | | ???????????????# #???????????????? | | ???????????????# #?????#####?????? | | ???????????????# #?????# $ ??????? | | ???????????????# ##????# k#??????? | | ???????????????# #????#$ #??????? | | ??????????????## ##???# #??????? | | ??????????????# ##### =#??????? | | ??????????????# ## !%##?????? | | ??????????????# a a #?????? | | ??????????????# %@ #?????? | | ??????????????# ##?????? | | ?????????????##a ###??????? | | ???????????### ###????????? | | #?????????## a ## ##??????????? | | ????????# ######???????????? | | ??????## #????????????????? | | #???###% #????????????????? | | #### ##????????????????? | | % ##?????????????????? | | #??????????????????? | | ### #??????????????????? | | #??## "# ##??????????????????? | | #????########???????????????????? | | #????????????????????????????????? | | #?????????????????????????????????? | | ??????????????????????????????????? | | ??????????????????????????????????? | | ??????????????????????????????????? | | ??????????????????????????????????? | | ??????????????????????????????????? | | ??????????????????????????????????? | | ??????????????????????????????????? | | ??????????????????????????????????? | | ??????????????????????????????????? | +----------------------------------------------------+ Best States ------------- Heat Dissipation 39 Energy Generation 14 Energy Capacity 160 Matter Stores 300 Matter Capacity 300 Sight Range 16 Terrain Scan Density 10 Evasion (%) 55 Recoil Reduction 2 Item Schematics ----------------- None Robot Schematics ------------------ None Fabricated ------------ Nothing Repaired ---------- Nothing Studied --------- None Alien Tech Used ----------------- None Achievements -------------- Sixth Sense Challenges ------------ None Game ------ Seed NovaPulseTurbovents Manual? 0 Play Time 00:30:02 Cumulative 26.3 hours Start 2026.04.09 @ 16:17:09 End 2026.04.09 @ 16:48:21 Sessions 1 Manual Loads 0 Difficulty Rogue Special Mode None Game No. 78 Rogue 78 Adventurer 0 Explorer 0 Win Type - Total 0 Types 0/0/0/0/0/0/0/0/0/0 Lore% 13 Gallery% 22 Achievement% 14 Wizard Run 0 Options --------- Layout 1 ASCII 0 Keyboard 1 Movement Vi Keybinds 0 Fullscreen 0 Font 16/TamsynBold Map View 64x42 Zoom Use 0% Tactical HUD 1 Map Filters NONE Filters NONE Steam 1 RUN: 9d58022f-5828-44eb-9d14-9207d53a3acc